bitfinex-derivatives/quotes_SOLF0:USTF0_20260204
["timestamp","ask_amount","ask_price","bid_price","bid_amount"]
[1770189980302,7.39373088,97.725,97.693,70.51669213]
[1770189980493,7.39373088,97.724,97.693,70.51669213]
[1770189980695,7.39373088,97.723,97.693,70.51669213]
[1770189980894,7.39373088,97.722,97.693,70.51669213]
[1770189981094,7.39373088,97.721,97.671,77.14899992]
[1770189981298,7.39373088,97.72,97.671,77.14899992]
[1770189981503,7.39373088,97.719,97.671,77.14899992]
[1770189981702,7.39373088,97.718,97.671,77.14899992]
[1770189981903,7.39373088,97.717,97.671,77.14899992]
[1770189982207,7.39373088,97.716,97.674,77.14899992]
[1770189982404,7.39373088,97.715,97.674,77.14899992]
[1770189982706,71.57512166,97.709,97.634,143.585]
[1770189983005,78.96885254,97.708,97.64,3.35294533]
[1770189983302,7.39373088,97.707,97.64,3.35294533]
[1770189983499,7.39373088,97.706,97.65,3.35294533]
[1770189983703,7.39373088,97.705,97.65,3.35294533]
[1770189984003,7.39373088,97.704,97.65,3.35294533]
[1770189984304,7.39373088,97.703,97.65,3.35294533]
[1770189984503,7.39373088,97.702,97.65,3.35294533]
[1770189984703,7.39373088,97.701,97.654,77.14899992]
[1770189984904,7.39373088,97.7,97.654,77.14899992]
[1770189985105,71.57512166,97.708,97.661,77.14899992]
[1770189985106,7.39373088,97.699,97.661,77.14899992]
[1770189985303,7.39373088,97.698,97.661,77.14899992]
[1770189985503,7.39373088,97.698,97.66,3.35294533]
[1770189985504,9.26766698,97.726,97.681,77.14899992]
[1770189985805,71.57512166,97.734,97.681,77.14899992]
[1770189988308,71.57512166,97.734,97.684,77.14899992]
[1770189988508,71.57512166,97.734,97.69,3.35294533]
[1770189988708,71.57512166,97.734,97.69,80.50194525]
[1770189990305,71.57512166,97.734,97.692,9.225]
[1770189997507,7.36336307,97.733,97.692,9.225]
[1770189997709,7.36336307,97.732,97.693,77.14899992]
[1770189998014,7.36336307,97.731,97.695,77.14899992]
[1770189998208,7.36336307,97.73,97.695,77.14899992]
[1770189998405,7.36336307,97.729,97.695,77.14899992]
[1770189998609,7.36336307,97.728,97.695,77.14899992]
[1770189998814,7.36336307,97.727,97.695,77.14899992]
[1770189999014,7.36336307,97.726,97.695,77.14899992]
[1770189999311,7.36336307,97.725,97.695,77.14899992]
[1770189999513,71.57512166,97.734,97.695,77.14899992]
[1770189999514,7.36336307,97.724,97.695,77.14899992]
[1770189999714,7.36336307,97.723,97.695,77.14899992]
[1770189999911,6.307e-05,97.722,97.699,9.2243]
[1770190000210,71.57512166,97.734,97.7,3.35294533]
[1770190000614,71.57512166,97.734,97.695,77.14899992]
[1770190001013,46.0,97.74,97.695,77.14899992]
[1770190001713,46.0,97.74,97.701,9.2241]
[1770190003920,117.57512166,97.74,97.701,9.2241]
[1770190005519,71.57512166,97.739,97.701,9.2241]
[1770190006623,46.0,97.74,97.708,86.37249992]
[1770190006821,46.0,97.74,97.671,408.32]
[1770190006822,71.57512166,97.739,97.68,3.35294533]
[1770190007017,71.57512166,97.719,97.671,77.14899992]
[1770190007418,3.35294533,97.71,97.671,77.14899992]
[1770190007719,62.0,97.7,97.671,77.14899992]
[1770190008023,62.0,97.7,97.674,9.2267]
[1770190009420,62.0,97.7,97.671,77.14899992]
[1770190009618,71.57512166,97.699,97.664,9.2277]
[1770190011913,74.0128922,97.71,97.675,9.2266]
[1770190012117,70.65994687,97.71,97.675,9.2266]
[1770190012823,62.0,97.7,97.675,9.2266]
[1770190013318,70.65994687,97.71,97.675,9.2266]
[1770190014122,9.26766698,97.731,97.687,72.39676378]
[1770190014328,70.65994687,97.739,97.691,72.39676378]
[1770190014622,70.65994687,97.739,97.698,9.2244]
[1770190016316,9.2184,97.763,97.698,9.2244]
[1770190016317,9.26766698,97.747,97.699,74.39841402]
[1770190016520,73.37838809,97.757,97.701,74.39841402]
[1770190017716,73.37838809,97.757,97.719,9.2224]
[1770190019216,73.37838809,97.757,97.71,12.57624533]
[1770190019816,73.37838809,97.749,97.71,9.2233]
[1770190021134,82.64605507,97.762,97.725,9.2219]
[1770190021431,73.37838809,97.762,97.725,9.2219]
[1770190025629,7.3804494,97.761,97.725,9.2219]
[1770190025927,7.3804494,97.76,97.725,9.2219]
[1770190026125,7.3804494,97.759,97.725,9.2219]
[1770190026325,7.3804494,97.758,97.725,9.2219]
[1770190026523,7.3804494,97.757,97.725,9.2219]
[1770190026726,7.3804494,97.756,97.725,9.2219]
[1770190026930,7.3804494,97.755,97.725,9.2219]
[1770190027131,73.37838809,97.779,97.732,9.2212]
[1770190027334,73.37838809,97.769,97.726,74.39841402]
[1770190027826,76.73133342,97.76,97.718,9.2226]
[1770190028031,76.73133342,97.75,97.718,9.2226]
[1770190028622,76.73133342,97.75,97.708,9.2234]
[1770190031229,76.73133342,97.75,97.675,143.5248]
[1770190031230,73.37838809,97.739,97.694,9.2248]
[1770190031629,73.37838809,97.739,97.691,74.39841402]
[1770190031829,3.35294533,97.75,97.715,9.2228]
[1770190032029,73.37838809,97.754,97.715,9.2228]
[1770190035031,3.35294533,97.76,97.719,74.39841402]
[1770190035226,73.37838809,97.767,97.719,74.39841402]
[1770190035935,73.37838809,97.767,97.71,3.35294533]
[1770190035936,73.37838809,97.767,97.707,143.4775]
[1770190036144,3.35294533,97.74,97.69,74.39841402]
[1770190037338,73.37838809,97.749,97.69,74.39841402]
[1770190037738,73.37838809,97.749,97.697,83.62291402]
[1770190039240,73.37838809,97.747,97.697,83.62291402]
[1770190039440,7.32979607,97.746,97.697,83.62291402]
[1770190039637,7.32979607,97.745,97.697,83.62291402]
[1770190039939,7.32979607,97.744,97.697,83.62291402]
[1770190040134,7.32979607,97.743,97.697,83.62291402]
[1770190040342,7.32979607,97.742,97.697,83.62291402]
[1770190040541,73.37838809,97.747,97.697,83.62291402]
[1770190040542,7.32979607,97.741,97.697,83.62291402]
[1770190040736,7.32979607,97.74,97.697,83.62291402]
[1770190040941,7.32979607,97.739,97.697,83.62291402]
[1770190041142,7.32979607,97.738,97.697,83.62291402]
[1770190041343,7.32979607,97.737,97.697,83.62291402]
[1770190041543,7.32979607,97.736,97.697,83.62291402]
[1770190041743,7.32979607,97.735,97.697,83.62291402]
[1770190041945,73.37838809,97.747,97.697,83.62291402]
[1770190042145,82.90462388,97.746,97.697,83.62291402]
[1770190042347,7.33339616,97.745,97.697,83.62291402]
[1770190042545,7.33339616,97.744,97.697,83.62291402]
[1770190042746,7.33339616,97.743,97.697,83.62291402]
[1770190042947,7.33339616,97.742,97.697,83.62291402]
[1770190043143,7.33339616,97.741,97.697,83.62291402]
[1770190043344,7.33339616,97.74,97.697,83.62291402]
[1770190043644,7.33339616,97.739,97.697,83.62291402]
[1770190043843,7.33339616,97.738,97.697,83.62291402]
[1770190044047,7.33339616,97.737,97.697,83.62291402]
[1770190044246,7.33339616,97.736,97.697,83.62291402]
[1770190044547,7.33339616,97.735,97.697,83.62291402]
[1770190044747,7.33339616,97.734,97.697,83.62291402]
[1770190044949,75.57122772,97.746,97.697,83.62291402]
[1770190045150,3.35320131,97.74,97.697,74.39841402]
[1770190045351,78.92442903,97.73,97.687,9.2254]
[1770190045547,75.57122772,97.728,97.687,9.2254]
[1770190045751,82.90780703,97.727,97.687,9.2254]
[1770190045950,7.33657931,97.726,97.687,9.2254]
[1770190046152,7.33657931,97.725,97.685,77.18208395]
[1770190046447,7.33657931,97.724,97.685,77.18208395]
[1770190046752,75.57122772,97.722,97.677,9.2264]
[1770190047052,78.92442903,97.72,97.679,86.40828395]
[1770190047251,7.33657931,97.719,97.679,86.40828395]
[1770190047443,7.33657931,97.718,97.679,86.40828395]
[1770190047642,75.57122772,97.716,97.679,77.18208395]
[1770190048050,7.33584215,97.715,97.679,77.18208395]
[1770190048252,7.33584215,97.714,97.679,77.18208395]
[1770190048551,7.33584215,97.713,97.679,77.18208395]
[1770190048747,7.33584215,97.712,97.679,77.18208395]
[1770190048950,7.33584215,97.711,97.679,77.18208395]
[1770190049152,7.33584215,97.71,97.679,77.18208395]
[1770190049349,75.57122772,97.728,97.681,77.18208395]
[1770190049555,7.33550487,97.727,97.681,77.18208395]
[1770190049853,7.33550487,97.726,97.681,77.18208395]
[1770190050052,7.33550487,97.725,97.681,77.18208395]
[1770190050254,7.33550487,97.724,97.681,77.18208395]
[1770190050455,75.57122772,97.728,97.681,77.18208395]
[1770190050651,7.33630044,97.727,97.69,9.2251]
[1770190050855,7.33630044,97.726,97.69,9.2251]
[1770190051149,7.33630044,97.725,97.69,9.2251]
[1770190051354,7.33630044,97.724,97.69,9.2251]
[1770190051557,75.57122772,97.728,97.69,86.40718395]
[1770190051856,7.3361506,97.727,97.69,86.40718395]
[1770190052150,7.3361506,97.726,97.69,89.76038526]
[1770190052356,7.3361506,97.725,97.69,89.76038526]
[1770190052554,7.3361506,97.724,97.69,86.40718395]
[1770190052755,75.57122772,97.728,97.69,86.40718395]
[1770190052955,7.33827491,97.727,97.69,86.40718395]
[1770190053156,7.33827491,97.726,97.69,86.40718395]
[1770190053356,7.33827491,97.725,97.69,86.40718395]
[1770190053557,7.33827491,97.724,97.69,86.40718395]
[1770190053757,7.33827491,97.723,97.69,86.40718395]
[1770190053954,3.35320131,97.72,97.672,77.18208395]
[1770190054151,143.421,97.747,97.624,143.6003]
[1770190054152,75.57122772,97.709,97.651,77.18208395]
[1770190054457,12.46306299,97.745,97.651,77.18208395]
[1770190054458,75.57122772,97.699,97.651,77.18208395]
[1770190054850,7.36283899,97.698,97.651,77.18208395]
[1770190055056,75.57122772,97.699,97.651,77.18208395]
[1770190055256,7.36283899,97.698,97.656,77.18208395]
[1770190055456,7.40681139,97.697,97.656,77.18208395]
[1770190055657,75.57122772,97.699,97.656,77.18208395]
[1770190055857,7.40619592,97.698,97.656,77.18208395]
[1770190056060,75.57122772,97.699,97.656,77.18208395]
[1770190056359,7.40622706,97.698,97.656,77.18208395]
[1770190056559,75.57122772,97.699,97.656,77.18208395]
[1770190056760,7.40622128,97.698,97.66,9.228]
[1770190057060,75.57122772,97.699,97.66,9.228]
[1770190057262,7.4050624,97.698,97.66,9.228]
[1770190057460,75.57122772,97.699,97.66,9.228]
[1770190057655,7.40622105,97.698,97.66,9.228]
[1770190057860,75.57122772,97.699,97.66,9.228]
[1770190058059,7.40484567,97.698,97.66,9.228]
[1770190058255,75.57122772,97.699,97.66,9.228]
[1770190058460,7.40443097,97.698,97.66,9.228]
[1770190058656,7.40311166,97.697,97.66,9.228]
[1770190058961,75.57122772,97.699,97.66,9.228]
[1770190059163,75.57122772,97.699,97.656,77.18208395]
[1770190059164,7.40235534,97.698,97.669,9.2271]
[1770190059457,7.40235534,97.698,97.576,19.0526571]
[1770190059458,3.35320131,97.75,97.693,220.68038395]
[1770190059663,296.12,97.793,97.693,77.18208395]
[1770190059664,3.35320131,97.74,97.693,77.18208395]
[1770190059965,7.4033137,97.739,97.693,77.18208395]
[1770190060263,7.4033137,97.738,97.693,77.18208395]
[1770190060461,7.4033137,97.737,97.693,77.18208395]
[1770190060660,3.35320131,97.74,97.7,9.2243]
[1770190060661,7.4033137,97.736,97.7,9.2243]
[1770190060860,7.4033137,97.735,97.7,9.2243]
[1770190061055,7.4033137,97.734,97.7,9.2243]
[1770190061261,7.4033137,97.733,97.7,9.2243]
[1770190061463,7.4033137,97.732,97.7,9.2243]
[1770190061668,7.4033137,97.731,97.7,9.2243]
[1770190061964,78.92442903,97.72,97.662,77.18208395]
[1770190062161,75.57122772,97.718,97.67,143.5328]
[1770190062360,7.4033137,97.717,97.67,220.71488395]
[1770190062563,54.35504142,97.718,97.681,143.5168]
[1770190062866,3.35320131,97.74,97.682,77.18208395]
[1770190063668,3.35320131,97.74,97.698,9.2244]
[1770190064266,3.35320131,97.74,97.682,77.18208395]
[1770190064464,3.35320131,97.75,97.692,77.18208395]
[1770190064670,3.35320131,97.76,97.7,3.35320131]
[1770190064870,78.92442903,97.75,97.692,77.18208395]
[1770190065670,78.92442903,97.75,97.697,77.18208395]
[1770190066767,78.92442903,97.75,97.7,9.2242]
[1770190067765,75.57122772,97.75,97.71,86.40538395]
[1770190069366,75.57122772,97.75,97.7,3.35320131]
[1770190069367,78.92442903,97.75,97.7,9.2243]
[1770190069563,78.92442903,97.73,97.68,77.18208395]
[1770190070872,78.92442903,97.73,97.68,89.76138526]
[1770190072874,78.92442903,97.73,97.68,86.40818395]
[1770190074577,7.39831789,97.729,97.68,86.40818395]
[1770190074774,7.39831789,97.728,97.68,86.40818395]
[1770190074974,7.39831789,97.727,97.68,86.40818395]
[1770190075176,7.39831789,97.726,97.68,86.40818395]
[1770190075474,7.39831789,97.725,97.68,86.40818395]
[1770190075673,7.39831789,97.724,97.68,86.40818395]
[1770190075873,7.39831789,97.723,97.68,86.40818395]
[1770190076074,7.39831789,97.722,97.68,86.40818395]
[1770190076275,7.39831789,97.721,97.68,86.40818395]
[1770190076475,78.92442903,97.73,97.68,86.40818395]
[1770190076476,7.39831789,97.72,97.68,86.40818395]
[1770190076676,7.39831789,97.719,97.68,86.40818395]
[1770190076976,7.39831789,97.718,97.68,89.76138526]
[1770190077180,7.39831789,97.717,97.68,86.40818395]
[1770190077377,7.39831789,97.716,97.68,86.40818395]
[1770190077577,7.39831789,97.715,97.68,86.40818395]
[1770190077875,7.39831789,97.714,97.68,89.76138526]
[1770190078077,7.39831789,97.713,97.68,89.76138526]
[1770190078268,7.39831789,97.712,97.68,89.76138526]
[1770190078474,7.39831789,97.711,97.68,89.76138526]
[1770190078669,7.39831789,97.71,97.68,89.76138526]
[1770190078876,78.92442903,97.73,97.68,89.76138526]
[1770190079076,7.39889808,97.729,97.68,89.76138526]
[1770190079277,7.39889808,97.728,97.68,89.76138526]
[1770190079482,7.39889808,97.727,97.68,89.76138526]
[1770190079678,7.39889808,97.726,97.68,89.76138526]
[1770190079878,7.39889808,97.725,97.68,89.76138526]
[1770190080079,7.39889808,97.724,97.68,89.76138526]
[1770190080279,7.39889808,97.723,97.68,89.76138526]
[1770190080479,7.39889808,97.722,97.68,89.76138526]
[1770190080680,7.39889808,97.721,97.68,89.76138526]
[1770190080880,7.39889808,97.72,97.68,89.76138526]
[1770190081083,7.39889808,97.719,97.68,77.18208395]
[1770190081279,79.09945085,97.718,97.68,77.18208395]
[1770190081480,7.39889808,97.717,97.68,77.18208395]
[1770190081781,7.39889808,97.716,97.68,77.18208395]
[1770190081981,7.39889808,97.715,97.68,77.18208395]
[1770190082173,7.39889808,97.714,97.68,77.18208395]
[1770190082374,71.70055277,97.709,97.666,75.41327759]
[1770190082578,3.35320131,97.7,97.658,9.2282]
[1770190082781,79.09945085,97.699,97.653,75.41327759]
[1770190082980,71.70055277,97.697,97.653,75.41327759]
[1770190083176,7.39889808,97.696,97.653,75.41327759]
[1770190083378,7.39889808,97.695,97.653,75.41327759]
[1770190083582,7.39889808,97.694,97.653,75.41327759]
[1770190083783,7.39889808,97.693,97.653,75.41327759]
[1770190084086,7.39889808,97.692,97.653,75.41327759]
[1770190084384,7.39889808,97.691,97.653,75.41327759]
[1770190084584,7.39889808,97.69,97.653,75.41327759]
[1770190084784,7.39889808,97.689,97.653,75.41327759]
[1770190084986,7.39889808,97.688,97.653,75.41327759]
[1770190085185,7.39889808,97.687,97.653,75.41327759]
[1770190085384,71.70055277,97.697,97.653,75.41327759]
[1770190085587,7.39684438,97.696,97.653,75.41327759]
[1770190085787,7.39684438,97.695,97.653,75.41327759]
[1770190085986,7.39684438,97.694,97.653,75.41327759]
[1770190086286,7.39684438,97.693,97.653,75.41327759]
[1770190086584,7.39684438,97.692,97.653,75.41327759]
[1770190086786,3.35320131,97.69,97.653,75.41327759]
[1770190086985,79.09739715,97.691,97.653,75.41327759]
[1770190086986,3.35320131,97.68,97.653,75.41327759]
[1770190089091,3.35320131,97.69,97.653,75.41327759]
[1770190089289,7.38219856,97.689,97.653,75.41327759]
[1770190089588,7.38219856,97.688,97.653,75.41327759]
[1770190089788,7.38219856,97.687,97.653,75.41327759]
[1770190090089,7.38219856,97.686,97.653,75.41327759]
[1770190090288,7.38219856,97.685,97.653,75.41327759]
[1770190090484,3.35320131,97.69,97.653,75.41327759]
[1770190090485,7.38219856,97.684,97.653,75.41327759]
[1770190090682,7.38219856,97.683,97.653,75.41327759]
[1770190090886,7.38219856,97.682,97.653,75.41327759]
[1770190091081,7.38219856,97.681,97.653,75.41327759]
[1770190091286,3.35320131,97.69,97.653,75.41327759]
[1770190091489,9.26766698,97.716,97.671,75.41327759]
[1770190091785,12.62086829,97.73,97.671,75.41327759]
[1770190091990,71.70055277,97.733,97.681,75.41327759]
[1770190092191,3.35320131,97.73,97.681,75.41327759]
[1770190092383,75.05375408,97.73,97.681,75.41327759]
[1770190096193,71.70055277,97.719,97.668,75.41327759]
[1770190098197,71.70055277,97.719,97.661,9.2279]
[1770190098198,71.70055277,97.719,97.671,75.41327759]
[1770190100303,9.26766698,97.729,97.68,78.7664789]
[1770190100502,9.26766698,97.73,97.68,78.7664789]
[1770190101602,81.87457956,97.73,97.68,78.7664789]
[1770190102406,81.87457956,97.73,97.68,78.76673118]
[1770190103200,9.26766698,97.729,97.68,78.76673118]
[1770190103507,7.38237415,97.728,97.68,78.76673118]
[1770190103808,7.38237415,97.727,97.68,78.76673118]
[1770190104102,7.38237415,97.726,97.68,78.76673118]
[1770190104310,7.38237415,97.725,97.68,78.76673118]
[1770190104503,7.38237415,97.724,97.68,75.41327759]
[1770190104709,75.67939676,97.72,97.68,75.41327759]
[1770190105007,7.38237415,97.719,97.68,75.41327759]
[1770190105204,7.38237415,97.718,97.68,75.41327759]
[1770190105409,7.38237415,97.717,97.68,75.41327759]
[1770190105709,7.38237415,97.716,97.68,75.41327759]
[1770190105906,7.38237415,97.715,97.68,75.41327759]
[1770190106106,7.38237415,97.714,97.68,75.41327759]
[1770190106408,7.38237415,97.713,97.68,75.41327759]
[1770190106606,7.38237415,97.712,97.68,75.41327759]
[1770190106803,7.38237415,97.711,97.68,75.41327759]
[1770190106998,7.38237415,97.71,97.68,75.41327759]
[1770190107203,7.38237415,97.709,97.68,75.41327759]
[1770190107411,7.38237415,97.708,97.68,75.41327759]
[1770190107604,7.38237415,97.707,97.68,75.41327759]
[1770190107807,7.38237415,97.706,97.68,75.41327759]
[1770190108007,7.38237415,97.705,97.68,75.41327759]
[1770190108204,7.38237415,97.704,97.68,75.41327759]
[1770190108410,7.38237415,97.703,97.68,75.41327759]
[1770190108613,72.32594317,97.72,97.68,75.41327759]
[1770190108915,7.38097268,97.719,97.68,75.41327759]
[1770190109109,7.38097268,97.718,97.68,75.41327759]
[1770190109315,7.38097268,97.717,97.68,75.41327759]
[1770190109513,7.38097268,97.716,97.68,75.41327759]
[1770190109715,7.38097268,97.715,97.68,75.41327759]
[1770190109912,7.38097268,97.714,97.68,75.41327759]
[1770190110114,7.38097268,97.713,97.68,75.41327759]
[1770190110414,7.38097268,97.712,97.68,75.41327759]
[1770190110619,72.32594317,97.72,97.68,75.41327759]
[1770190110620,7.38097268,97.711,97.68,75.41327759]
[1770190110811,7.38097268,97.71,97.68,75.41327759]
[1770190111011,7.38097268,97.709,97.68,75.41327759]
[1770190111216,7.38097268,97.708,97.68,75.41327759]
[1770190111415,72.32594317,97.72,97.68,75.41327759]
[1770190111416,7.38097268,97.707,97.68,75.41327759]
[1770190111615,72.32594317,97.72,97.68,75.41327759]
[1770190111616,7.38097268,97.706,97.68,75.41327759]
[1770190111815,72.32594317,97.72,97.68,75.41327759]
[1770190111816,7.38097268,97.705,97.68,75.41327759]
[1770190112017,7.38097268,97.704,97.68,75.41327759]
[1770190112216,7.38097268,97.703,97.68,75.41327759]
[1770190112517,7.38097268,97.702,97.68,75.41327759]
[1770190112817,7.38097268,97.701,97.68,75.41327759]
[1770190113019,7.38097268,97.7,97.68,75.41327759]
[1770190113216,7.38834031,97.699,97.68,75.41327759]
[1770190113416,72.32594317,97.72,97.68,75.41327759]
[1770190113616,7.38767067,97.719,97.68,75.41327759]
[1770190113816,7.38767067,97.718,97.68,75.41327759]
[1770190114020,7.38767067,97.717,97.68,78.76673118]
[1770190114219,7.38767067,97.716,97.68,78.76673118]
[1770190114412,7.38767067,97.715,97.691,74.87388621]
[1770190114717,0.37620634,97.714,97.691,74.87388621]
[1770190114918,9.26766698,97.733,97.691,74.87388621]
[1770190115122,9.26766698,97.732,97.691,74.87388621]
[1770190115310,72.66122704,97.729,97.674,74.87388621]
[1770190115516,3.35345359,97.72,97.674,74.87388621]
[1770190115711,76.01468063,97.72,97.674,74.87388621]
[1770190120924,72.66122704,97.72,97.674,74.87388621]
[1770190121131,9.26766698,97.717,97.674,74.87388621]
[1770190122227,74.67254584,97.714,97.674,74.87388621]
[1770190123725,9.2233,97.711,97.674,74.87388621]
[1770190126525,7.42441498,97.71,97.674,74.87388621]
[1770190126728,7.42441498,97.709,97.674,74.87388621]
[1770190126927,7.42441498,97.708,97.674,74.87388621]
[1770190127129,7.42441498,97.707,97.674,74.87388621]
[1770190127430,7.42441498,97.706,97.674,74.87388621]
[1770190127631,9.2233,97.711,97.674,74.87388621]
[1770190127632,7.42441498,97.705,97.674,74.87388621]
[1770190127832,7.42441498,97.704,97.674,74.87388621]
[1770190128036,7.42441498,97.703,97.674,74.87388621]
[1770190128233,7.42441498,97.702,97.674,74.87388621]
[1770190128535,7.42441498,97.701,97.674,74.87388621]
[1770190128723,7.42441498,97.7,97.674,74.87388621]
[1770190128922,7.42441498,97.699,97.674,74.87388621]
[1770190129127,7.42441498,97.698,97.674,74.87388621]
[1770190129328,7.42441498,97.697,97.674,74.87388621]
[1770190129530,7.42441498,97.696,97.674,74.87388621]
[1770190129833,7.42441498,97.695,97.674,74.87388621]
[1770190130126,7.42441498,97.694,97.674,74.87388621]
[1770190130327,7.42441498,97.693,97.674,74.87388621]
[1770190130529,74.67254584,97.724,97.674,74.87388621]
[1770190130731,82.6381206,97.723,97.674,74.87388621]
[1770190130923,7.423328,97.722,97.674,74.87388621]
[1770190131231,7.423328,97.721,97.674,74.87388621]
[1770190131433,7.423328,97.72,97.674,74.87388621]
[1770190131731,75.2147926,97.718,97.674,74.87388621]
[1770190131929,9.2228,97.716,97.674,74.87388621]
[1770190132135,75.2147926,97.71,97.674,74.87388621]
[1770190132436,7.423328,97.709,97.674,74.87388621]
[1770190132636,7.423328,97.708,97.674,74.87388621]
[1770190132837,7.423328,97.707,97.674,74.87388621]
[1770190133131,7.423328,97.706,97.674,74.87388621]
[1770190133339,7.423328,97.705,97.674,74.87388621]
[1770190133538,7.423328,97.704,97.674,74.87388621]
[1770190133836,7.423328,97.703,97.674,74.87388621]
[1770190134026,7.423328,97.702,97.674,74.87388621]
[1770190134226,7.423328,97.701,97.674,74.87388621]
[1770190134430,7.423328,97.7,97.674,74.87388621]
[1770190134632,7.423328,97.699,97.674,74.87388621]
[1770190134932,7.423328,97.698,97.674,74.87388621]
[1770190135129,7.423328,97.697,97.674,74.87388621]
[1770190135334,7.423328,97.696,97.674,74.87388621]
[1770190135640,7.423328,97.695,97.674,74.87388621]
[1770190135837,7.423328,97.694,97.674,74.87388621]
[1770190136034,7.423328,97.693,97.674,74.87388621]
[1770190136340,7.423328,97.692,97.674,74.87388621]
[1770190136642,7.423328,97.691,97.674,74.87388621]
[1770190136932,7.423328,97.69,97.674,74.87388621]
[1770190137138,7.423328,97.689,97.674,74.87388621]
[1770190137333,7.423328,97.688,97.674,74.87388621]
[1770190137537,7.423328,97.687,97.674,74.87388621]
[1770190137737,7.423328,97.686,97.674,74.87388621]
[1770190137937,7.423328,97.685,97.674,74.87388621]
[1770190138139,7.423328,97.684,97.674,74.87388621]
[1770190138434,7.423328,97.683,97.674,74.87388621]
[1770190138641,75.2147926,97.71,97.674,74.87388621]
[1770190139640,9.26766698,97.707,97.674,74.87388621]
[1770190141843,9.26766698,97.706,97.674,74.87388621]
[1770190142647,9.26766698,97.711,97.674,74.87388621]
[1770190143245,12.46306299,97.734,97.681,71.25109884]
[1770190143447,74.85246222,97.735,97.681,71.25109884]
[1770190143744,74.85246222,97.709,97.668,71.25109884]
[1770190145244,3.35345359,97.7,97.668,71.25109884]
[1770190145439,78.20591581,97.7,97.644,71.25109884]
[1770190148846,3.35345359,97.71,97.655,71.25109884]
[1770190149046,78.20591581,97.71,97.655,71.25109884]
[1770190149348,3.35345359,97.7,97.655,71.25109884]
[1770190149547,78.20591581,97.71,97.655,71.25109884]
[1770190150139,78.20591581,97.71,97.657,71.25109884]
[1770190150543,74.85246222,97.708,97.657,71.25109884]
[1770190150846,7.38084165,97.707,97.657,71.25109884]
[1770190151047,7.38084165,97.706,97.657,71.25109884]
[1770190151246,7.38084165,97.705,97.657,71.25109884]
[1770190151448,7.38084165,97.704,97.657,71.25109884]
[1770190151748,7.38084165,97.703,97.657,71.25109884]
[1770190152047,7.38084165,97.702,97.659,71.25109884]
[1770190152247,7.38084165,97.701,97.659,71.25109884]
[1770190152449,74.85246222,97.708,97.659,71.25109884]
[1770190152450,7.38084165,97.7,97.659,71.25109884]
[1770190152745,7.38084165,97.699,97.659,71.25109884]
[1770190152945,7.38084165,97.698,97.659,71.25109884]
[1770190153146,7.38084165,97.697,97.659,71.25109884]
[1770190153348,7.38084165,97.696,97.659,71.25109884]
[1770190153550,7.38084165,97.695,97.659,71.25109884]
[1770190153749,7.38084165,97.694,97.659,71.25109884]
[1770190153952,7.38084165,97.693,97.659,71.25109884]
[1770190154148,7.38084165,97.692,97.659,71.25109884]
[1770190154349,7.38084165,97.691,97.659,71.25109884]
[1770190154646,7.38084165,97.69,97.659,71.25109884]
[1770190154845,7.38084165,97.689,97.659,71.25109884]
[1770190155046,7.38084165,97.688,97.659,71.25109884]
[1770190155350,7.38084165,97.687,97.659,71.25109884]
[1770190155550,7.38084165,97.686,97.659,71.25109884]
[1770190155848,7.38084165,97.685,97.659,71.25109884]
[1770190156045,3.35345359,97.68,97.62,3.35345359]
[1770190156243,82.23330387,97.679,97.62,3.35345359]
[1770190156548,7.38084165,97.678,97.63,9.2308]
[1770190156748,7.38084165,97.677,97.63,9.2308]
[1770190156948,7.38084165,97.676,97.63,9.2308]
[1770190157150,7.38084165,97.675,97.63,9.2308]
[1770190157350,7.38084165,97.674,97.63,9.2308]
[1770190157550,7.38084165,97.673,97.63,9.2308]
[1770190157750,7.38084165,97.672,97.63,9.2308]
[1770190157952,7.38084165,97.671,97.63,9.2308]
[1770190158150,7.38084165,97.67,97.633,71.25109884]
[1770190158354,7.38084165,97.669,97.633,71.25109884]
[1770190158543,7.38084165,97.668,97.633,71.25109884]
[1770190158748,7.38084165,97.667,97.633,71.25109884]
[1770190158952,7.38084165,97.666,97.633,71.25109884]
[1770190159250,7.38084165,97.665,97.633,71.25109884]
[1770190159451,7.38084165,97.664,97.633,71.25109884]
[1770190159647,74.85246222,97.679,97.633,71.25109884]
[1770190159853,7.37999203,97.678,97.635,71.25109884]
[1770190160053,7.37999203,97.677,97.635,71.25109884]
[1770190160243,7.37999203,97.676,97.635,71.25109884]
[1770190160552,7.37999203,97.675,97.635,71.25109884]
[1770190160851,7.37999203,97.674,97.635,71.25109884]
[1770190161153,7.37999203,97.673,97.635,71.25109884]
[1770190161353,74.85246222,97.679,97.635,71.25109884]
[1770190161354,7.37999203,97.672,97.635,71.25109884]
[1770190161555,7.37999203,97.671,97.635,71.25109884]
[1770190161853,7.37999203,97.67,97.635,71.25109884]
[1770190162151,73.19768387,97.691,97.64,3.35345359]
[1770190162350,143.4038,97.759,97.651,71.46798267]
[1770190162351,7.3801752,97.69,97.651,71.46798267]